[Event "CCT Chessable Masters Place D-III 2024"]
[Site "Online"]
[Date "2024.02.01"]
[Round "1"]
[White "Zlatan56"]
[Black "Kovalev, Vladislav"]
[Result "1/2-1/2"]
[ECO "C84"]
[WhiteElo "2634"]
[BlackElo "2579"]
[Annotator "NA"]
[PlyCount "122"]
[EventDate "2024.01.12"]
[EventType "k.o."]
[EventCountry "NET"]
[SourceTitle "playchess.com"]
[Source "ChessBase"]
[SourceQuality "1"]
[TimeControl "600+2"]

1. e4 {[%emt 0:00:04]} e5 {[%emt 0:00:04]} 2. Nf3 {[%emt 0:00:02]} Nc6 {[%emt 0:00:00]} 3. Bb5 {[%emt 0:00:01]} a6 {[%emt 0:00:01]} 4. Ba4 {[%emt 0:00:02]} Nf6 {[%emt 0:00:01]} 5. O-O {[%emt 0:00:01]} Be7 {[%emt 0:00:00]} 6. d3 {[%emt 0:00:02]} b5 {[%emt 0:00:01]} 7. Bb3 {[%emt 0:00:01]} d6 {[%emt 0:00:01]} 8. a4 {[%emt 0:00:01]} Rb8 {[%emt 0:00:12]} 9. axb5 {[%emt 0:00:23]} axb5 {[%emt 0:00:00]} 10. h3 {[%emt 0:00:14]} O-O {[%emt 0:00:01]} 11. Bd2 {[%emt 0:00:17]} h6 {[%emt 0:00:17]} 12. Nc3 {[%emt 0:00:04]} Be6 {[%emt 0:00:47]} 13. Nd5 {[%emt 0:00:10]} Qd7 {[%emt 0:00:15]} 14. Ra6 {[%emt 0:00:31]} Nd8 {[%emt 0:01:16]} 15. Ra7 {[%emt 0:01:12]} Rb7 {[%emt 0:00:57]} 16. Ra8 {[%emt 0:00:27]} c6 {[%emt 0:00:19]} 17. Nxe7+ {[%emt 0:00:21]} Qxe7 {[%emt 0:00:00]} 18. c3 {[%emt 0:00:05]} Bxb3 {[%emt 0:01:16]} 19. Qxb3 {[%emt 0:00:00]} Ne6 {[%emt 0:00:01]} 20. Rfa1 {[%emt 0:00:12]} Rxa8 {[%emt 0:00:18]} 21. Rxa8+ {[%emt 0:00:00]} Kh7 {[%emt 0:00:01]} 22. Be3 {[%emt 0:00:11]} c5 {[%emt 0:00:44]} 23. Qc2 {[%emt 0:01:47]} Ra7 {[%emt 0:01:21]} 24. Rxa7 {[%emt 0:00:47]} Qxa7 {[%emt 0:00:00]} 25. b4 {[%emt 0:00:13]} Qa1+ {[%emt 0:00:41]} 26. Kh2 {[%emt 0:00:04]} cxb4 {[%emt 0:00:02]} 27. cxb4 {[%emt 0:00:00]} Qa3 {[%emt 0:00:22]} 28. Bd2 {[%emt 0:00:24]} g6 {[%emt 0:00:34]} 29. Bc3 {[%emt 0:00:44]} Qa8 {[%emt 0:00:25]} 30. Qd2 {[%emt 0:00:27]} Qa4 {[%emt 0:00:14]} 31. Qe3 {[%emt 0:00:24]} Qb3 {[%emt 0:00:19]} 32. Bd2 {[%emt 0:00:17]} g5 {[%emt 0:00:12]} 33. g3 {[%emt 0:00:05]} Kg7 {[%emt 0:00:11]} 34. Kg2 {[%emt 0:00:01]} Qc2 {[%emt 0:00:03]} 35. h4 {[%emt 0:00:24]} Nh7 {[%emt 0:00:10]} 36. hxg5 {[%emt 0:00:40]} hxg5 {[%emt 0:00:00]} 37. d4 {[%emt 0:00:01]} g4 {[%emt 0:00:01]} 38. Nh2 {[%emt 0:00:15]} exd4 {[%emt 0:00:09]} 39. Qe2 {[%emt 0:00:01]} d3 {[%emt 0:00:02]} 40. Qxg4+ {[%emt 0:00:02]} Kf8 {[%emt 0:00:01]} 41. Nf3 {[%emt 0:00:02]} Nf6 {[%emt 0:00:02]} 42. Qf5 {[%emt 0:00:03]} Ke7 {[%emt 0:00:02]} 43. Qxb5 {[%emt 0:00:03]} Kf8 {[%emt 0:00:02]} 44. Qf5 {[%emt 0:00:02]} Ke7 {[%emt 0:00:01]} 45. e5 {[%emt 0:00:07]} dxe5 {[%emt 0:00:02]} 46. Qxe5 {[%emt 0:00:00]} Qc6 {[%emt 0:00:02]} 47. b5 {[%emt 0:00:02]} Qe4 {[%emt 0:00:02]} 48. Qxe4 {[%emt 0:00:07]} Nxe4 {[%emt 0:00:00]} 49. Be3 {[%emt 0:00:01]} Kd6 {[%emt 0:00:03]} 50. Nd2 {[%emt 0:00:02]} Nxd2 {[%emt 0:00:02]} 51. Bxd2 {[%emt 0:00:01]} Kc5 {[%emt 0:00:00]} 52. Kf3 {[%emt 0:00:00]} Kxb5 {[%emt 0:00:00]} 53. Ke4 {[%emt 0:00:03]} Kc4 {[%emt 0:00:01]} 54. f4 {[%emt 0:00:03]} Nc5+ {[%emt 0:00:04]} 55. Kf5 {[%emt 0:00:03]} Nb3 {[%emt 0:00:01]} 56. Be3 {[%emt 0:00:01]} Kd5 {[%emt 0:00:01]} 57. g4 {[%emt 0:00:02]} d2 {[%emt 0:00:07]} 58. Bxd2 {[%emt 0:00:02]} Nxd2 {[%emt 0:00:00]} 59. Kf6 {[%emt 0:00:01]} Ke4 {[%emt 0:00:01]} 60. Kxf7 {[%emt 0:00:03]} Kxf4 {[%emt 0:00:00]} 61. g5 {[%emt 0:00:00]} Kxg5 {[%emt 0:00:01]} 1/2-1/2

[Event "CCT Chessable Masters Place D-III 2024"]
[Site "Online"]
[Date "2024.02.01"]
[Round "1"]
[White "Fandorine"]
[Black "ViIIagra"]
[Result "1/2-1/2"]
[ECO "A22"]
[WhiteElo "2619"]
[BlackElo "2585"]
[Annotator "ChessBase"]
[PlyCount "80"]
[EventDate "2024.01.12"]
[EventType "k.o."]
[EventCountry "NET"]
[SourceTitle "playchess.com"]
[Source "ChessBase"]
[SourceQuality "1"]
[TimeControl "600+2"]

1. c4 {[%emt 0:00:11]} e5 {[%emt 0:00:17]} 2. g3 {[%emt 0:00:01]} Nf6 {[%emt 0:00:32]} 3. Bg2 {[%emt 0:00:02]} Bc5 {[%emt 0:00:02]} 4. Nc3 {[%emt 0:00:11]} O-O {[%emt 0:00:01]} 5. e3 {[%emt 0:00:09]} Re8 {[%emt 0:00:19]} 6. Nge2 {[%emt 0:00:04]} d6 {[%emt 0:00:15]} 7. d3 {[%emt 0:00:06]} a6 {[%emt 0:00:07]} 8. O-O {[%emt 0:00:02]} c6 {[%emt 0:00:08]} 9. d4 {[%emt 0:00:48]} Ba7 {[%emt 0:00:06]} 10. h3 {[%emt 0:00:01]} Nbd7 {[%emt 0:00:45]} 11. e4 {[%emt 0:00:15]} exd4 {[%emt 0:00:19]} 12. Nxd4 {[%emt 0:00:02]} Ne5 {[%emt 0:00:00]} 13. b3 {[%emt 0:00:03]} Bxh3 {[%emt 0:00:57]} 14. Nxc6 {[%emt 0:00:21]} Nxc6 {[%emt 0:00:24]} 15. Bxh3 {[%emt 0:00:02]} Bd4 {[%emt 0:00:01]} 16. Bb2 {[%emt 0:00:21]} Nxe4 {[%emt 0:00:32]} 17. Nxe4 {[%emt 0:00:07]} Rxe4 {[%emt 0:01:12]} 18. Bg2 {[%emt 0:00:31]} Bxb2 {[%emt 0:00:13]} 19. Bxe4 {[%emt 0:00:02]} Bxa1 {[%emt 0:00:24]} 20. Qxa1 {[%emt 0:00:00]} Qd7 {[%emt 0:00:31]} 21. Rd1 {[%emt 0:00:38]} Re8 {[%emt 0:00:14]} 22. Bg2 {[%emt 0:00:01]} Qe7 {[%emt 0:00:18]} 23. Bxc6 {[%emt 0:01:07]} bxc6 {[%emt 0:00:01]} 24. Qd4 {[%emt 0:00:00]} d5 {[%emt 0:00:53]} 25. cxd5 {[%emt 0:00:04]} cxd5 {[%emt 0:00:00]} 26. Qxd5 {[%emt 0:00:01]} g6 {[%emt 0:00:01]} 27. Qc6 {[%emt 0:00:09]} Qe2 {[%emt 0:00:06]} 28. Rd2 {[%emt 0:00:15]} Re6 {[%emt 0:00:38]} 29. Qc8+ {[%emt 0:00:41]} Re8 {[%emt 0:00:01]} 30. Rxe2 {[%emt 0:00:01]} Rxc8 {[%emt 0:00:02]} 31. Re5 {[%emt 0:00:00]} Rc6 {[%emt 0:00:05]} 32. g4 {[%emt 0:00:05]} Kg7 {[%emt 0:00:05]} 33. Kg2 {[%emt 0:00:05]} h6 {[%emt 0:00:26]} 34. Ra5 {[%emt 0:00:06]} Rb6 {[%emt 0:00:01]} 35. f4 {[%emt 0:00:07]} Kf6 {[%emt 0:00:03]} 36. Kf3 {[%emt 0:00:02]} Ke6 {[%emt 0:00:01]} 37. Re5+ {[%emt 0:00:21]} Kf6 {[%emt 0:00:04]} 38. g5+ {[%emt 0:00:38]} hxg5 {[%emt 0:00:02]} 39. Rxg5 {[%emt 0:00:01]} Kg7 {[%emt 0:00:14]} 40. Ra5 {[%emt 0:00:04]} f5 {[%emt 0:00:05]} 1/2-1/2

[Event "CCT Chessable Masters Place D-III 2024"]
[Site "Online"]
[Date "2024.02.01"]
[Round "1"]
[White "Santos Latasa, Jaime"]
[Black "SpeedofLight0"]
[Result "1-0"]
[ECO "C84"]
[WhiteElo "2615"]
[BlackElo "2521"]
[Annotator "ChessBase"]
[PlyCount "151"]
[EventDate "2024.01.12"]
[EventType "k.o."]
[EventCountry "NET"]
[SourceTitle "playchess.com"]
[Source "ChessBase"]
[SourceQuality "1"]
[TimeControl "600+2"]

1. e4 {[%emt 0:00:05]} e5 {[%emt 0:02:12]} 2. Nf3 {[%emt 0:00:03]} Nc6 {[%emt 0:00:03]} 3. Bb5 {[%emt 0:00:04]} a6 {[%emt 0:00:03]} 4. Ba4 {[%emt 0:00:03]} Nf6 {[%emt 0:00:02]} 5. O-O {[%emt 0:00:03]} Be7 {[%emt 0:00:03]} 6. d3 {[%emt 0:00:04]} d6 {[%emt 0:00:05]} 7. c3 {[%emt 0:00:05]} O-O {[%emt 0:00:03]} 8. Re1 {[%emt 0:00:05]} b5 {[%emt 0:00:11]} 9. Bc2 {[%emt 0:00:04]} Bb7 {[%emt 0:00:06]} 10. Nbd2 {[%emt 0:00:09]} Re8 {[%emt 0:00:03]} 11. Nf1 {[%emt 0:00:11]} Bf8 {[%emt 0:00:05]} 12. Ng3 {[%emt 0:00:03]} Nb8 {[%emt 0:00:03]} 13. a4 {[%emt 0:00:10]} Nbd7 {[%emt 0:00:05]} 14. d4 {[%emt 0:00:10]} g6 {[%emt 0:00:13]} 15. Bd3 {[%emt 0:00:05]} c6 {[%emt 0:00:05]} 16. Bg5 {[%emt 0:00:06]} Qc7 {[%emt 0:00:05]} 17. Qd2 {[%emt 0:00:12]} Bg7 {[%emt 0:00:05]} 18. Bh6 {[%emt 0:00:28]} Bh8 {[%emt 0:00:05]} 19. h3 {[%emt 0:00:07]} Rad8 {[%emt 0:00:14]} 20. axb5 {[%emt 0:00:05]} axb5 {[%emt 0:00:02]} 21. Qc2 {[%emt 0:00:21]} Ra8 {[%emt 0:00:05]} 22. Rad1 {[%emt 0:00:24]} Nb6 {[%emt 0:00:07]} 23. b3 {[%emt 0:00:15]} Ba6 {[%emt 0:00:11]} 24. Bf1 {[%emt 0:00:17]} c5 {[%emt 0:00:15]} 25. d5 {[%emt 0:00:06]} c4 {[%emt 0:00:03]} 26. b4 {[%emt 0:00:14]} Bb7 {[%emt 0:00:03]} 27. Ra1 {[%emt 0:00:05]} Rxa1 {[%emt 0:00:04]} 28. Rxa1 {[%emt 0:00:04]} Ra8 {[%emt 0:00:03]} 29. Qc1 {[%emt 0:00:14]} Rxa1 {[%emt 0:00:30]} 30. Qxa1 {[%emt 0:00:02]} Na4 {[%emt 0:00:02]} 31. Nd2 {[%emt 0:00:09]} Qd7 {[%emt 0:00:12]} 32. Be2 {[%emt 0:00:06]} Bg7 {[%emt 0:00:28]} 33. Be3 {[%emt 0:00:05]} Bxd5 {[%emt 0:00:40]} 34. exd5 {[%emt 0:00:16]} Nxd5 {[%emt 0:00:02]} 35. Nb1 {[%emt 0:00:21]} Nxe3 {[%emt 0:00:28]} 36. fxe3 {[%emt 0:00:02]} d5 {[%emt 0:00:13]} 37. Bd1 {[%emt 0:00:07]} d4 {[%emt 0:00:11]} 38. Bxa4 {[%emt 0:00:08]} bxa4 {[%emt 0:00:04]} 39. Nd2 {[%emt 0:00:58]} dxe3 {[%emt 0:00:53]} 40. Nxc4 {[%emt 0:00:06]} Qd3 {[%emt 0:00:03]} 41. Qa2 {[%emt 0:00:32]} Qxc3 {[%emt 0:00:18]} 42. b5 {[%emt 0:00:05]} Bh6 {[%emt 0:00:31]} 43. Nd6 {[%emt 0:00:32]} Qc7 {[%emt 0:00:47]} 44. Nge4 {[%emt 0:00:04]} Bf4 {[%emt 0:00:47]} 45. Kf1 {[%emt 0:00:16]} a3 {[%emt 0:00:26]} 46. b6 {[%emt 0:00:08]} Qc1+ {[%emt 0:00:03]} 47. Ke2 {[%emt 0:00:04]} Qb2+ {[%emt 0:00:03]} 48. Qxb2 {[%emt 0:00:04]} axb2 {[%emt 0:00:02]} 49. Nc3 {[%emt 0:00:03]} e4 {[%emt 0:00:02]} 50. Ndxe4 {[%emt 0:00:04]} f5 {[%emt 0:00:02]} 51. Nc5 {[%emt 0:00:05]} Kf7 {[%emt 0:00:03]} 52. b7 {[%emt 0:00:06]} Kf6 {[%emt 0:00:02]} 53. Nd3 {[%emt 0:00:08]} Bb8 {[%emt 0:00:05]} 54. Nxb2 {[%emt 0:00:03]} f4 {[%emt 0:00:02]} 55. Nc4 {[%emt 0:00:04]} Kg5 {[%emt 0:00:02]} 56. Na5 {[%emt 0:00:05]} Kh4 {[%emt 0:00:03]} 57. Kf3 {[%emt 0:00:04]} g5 {[%emt 0:00:03]} 58. Nc6 {[%emt 0:00:03]} Bc7 {[%emt 0:00:02]} 59. b8=Q {[%emt 0:00:04]} Bxb8 {[%emt 0:00:03]} 60. Nxb8 {[%emt 0:00:02]} h5 {[%emt 0:00:02]} 61. Nc6 {[%emt 0:00:04]} g4+ {[%emt 0:00:02]} 62. hxg4 {[%emt 0:00:03]} hxg4+ {[%emt 0:00:03]} 63. Kxf4 {[%emt 0:00:03]} e2 {[%emt 0:00:02]} 64. Nxe2 {[%emt 0:00:03]} g3 {[%emt 0:00:02]} 65. Kf3 {[%emt 0:00:04]} Kg5 {[%emt 0:00:03]} 66. Ncd4 {[%emt 0:00:03]} Kf6 {[%emt 0:00:02]} 67. Nxg3 {[%emt 0:00:04]} Ke5 {[%emt 0:00:02]} 68. Ngf5 {[%emt 0:00:03]} Kd5 {[%emt 0:00:02]} 69. g4 {[%emt 0:00:03]} Kc4 {[%emt 0:00:02]} 70. g5 {[%emt 0:00:02]} Kc3 {[%emt 0:00:03]} 71. g6 {[%emt 0:00:03]} Kd2 {[%emt 0:00:02]} 72. g7 {[%emt 0:00:02]} Kc3 {[%emt 0:00:02]} 73. g8=Q {[%emt 0:00:03]} Kd3 {[%emt 0:00:02]} 74. Qb3+ {[%emt 0:00:03]} Kd2 {[%emt 0:00:02]} 75. Qc2+ {[%emt 0:00:03]} Ke1 {[%emt 0:00:03]} 76. Qc1# {[%emt 0:00:03]} 1-0

[Event "CCT Chessable Masters Place D-III 2024"]
[Site "Online"]
[Date "2024.02.01"]
[Round "1"]
[White "rasmussvane"]
[Black "Predke, Alexandr"]
[Result "1/2-1/2"]
[ECO "A47"]
[WhiteElo "2612"]
[BlackElo "2668"]
[Annotator "ChessBase"]
[PlyCount "70"]
[EventDate "2024.01.12"]
[EventType "k.o."]
[EventCountry "NET"]
[SourceTitle "playchess.com"]
[Source "ChessBase"]
[SourceQuality "1"]
[TimeControl "600+2"]

1. d4 {[%emt 0:00:10]} Nf6 {[%emt 0:00:03]} 2. Nf3 {[%emt 0:00:11]} c5 {[%emt 0:00:13]} 3. e3 {[%emt 0:00:49]} b6 {[%emt 0:00:06]} 4. d5 {[%emt 0:00:12]} e6 {[%emt 0:00:10]} 5. Nc3 {[%emt 0:00:04]} Bb7 {[%emt 0:00:19]} 6. e4 {[%emt 0:00:04]} exd5 {[%emt 0:00:07]} 7. e5 {[%emt 0:00:50]} Ng4 {[%emt 0:00:02]} 8. Nxd5 {[%emt 0:00:03]} Nc6 {[%emt 0:00:01]} 9. Bg5 {[%emt 0:00:32]} Qb8 {[%emt 0:00:12]} 10. Qd2 {[%emt 0:00:19]} Nd4 {[%emt 0:01:14]} 11. Bc4 {[%emt 0:01:39]} b5 {[%emt 0:03:25]} 12. Bb3 {[%emt 0:01:28]} Ne6 {[%emt 0:01:39]} 13. O-O-O {[%emt 0:00:04]} Bc6 {[%emt 0:00:16]} 14. h3 {[%emt 0:00:28]} Nxf2 {[%emt 0:00:41]} 15. Qxf2 {[%emt 0:00:16]} c4 {[%emt 0:00:01]} 16. Rhf1 {[%emt 0:00:31]} Bc5 {[%emt 0:00:09]} 17. Be3 {[%emt 0:01:04]} Bxe3+ {[%emt 0:00:01]} 18. Qxe3 {[%emt 0:00:07]} Qb7 {[%emt 0:00:09]} 19. Nh4 {[%emt 0:00:28]} Bxd5 {[%emt 0:00:27]} 20. Nf5 {[%emt 0:00:01]} O-O {[%emt 0:00:03]} 21. Rxd5 {[%emt 0:00:08]} cxb3 {[%emt 0:00:07]} 22. axb3 {[%emt 0:00:05]} a5 {[%emt 0:00:22]} 23. Qd3 {[%emt 0:00:02]} a4 {[%emt 0:00:07]} 24. b4 {[%emt 0:00:09]} a3 {[%emt 0:00:02]} 25. bxa3 {[%emt 0:00:02]} Kh8 {[%emt 0:00:42]} 26. Nd6 {[%emt 0:00:03]} Qc6 {[%emt 0:00:01]} 27. Qxb5 {[%emt 0:00:13]} Qc3 {[%emt 0:00:01]} 28. Qd3 {[%emt 0:00:05]} Qa1+ {[%emt 0:00:06]} 29. Kd2 {[%emt 0:00:01]} Qa2 {[%emt 0:00:01]} 30. Nxf7+ {[%emt 0:00:15]} Kg8 {[%emt 0:00:02]} 31. Rxd7 {[%emt 0:00:01]} Rxa3 {[%emt 0:00:10]} 32. Nh6+ {[%emt 0:00:01]} Kh8 {[%emt 0:00:00]} 33. Nf7+ {[%emt 0:00:22]} Kg8 {[%emt 0:00:01]} 34. Nh6+ {[%emt 0:00:01]} Kh8 {[%emt 0:00:04]} 35. Nf7+ {[%emt 0:00:01]} Kg8 {[%emt 0:00:02]} 1/2-1/2

[Event "CCT Chessable Masters Place D-III 2024"]
[Site "Online"]
[Date "2024.02.01"]
[Round "1"]
[White "Demchenko, Anton"]
[Black "Kravtsiv, Martyn"]
[Result "1-0"]
[ECO "C54"]
[WhiteElo "2609"]
[BlackElo "2598"]
[Annotator "ChessBase"]
[PlyCount "103"]
[EventDate "2024.01.12"]
[EventType "k.o."]
[EventCountry "NET"]
[SourceTitle "playchess.com"]
[Source "ChessBase"]
[SourceQuality "1"]
[TimeControl "600+2"]

1. e4 {[%emt 0:00:03]} e5 {[%emt 0:00:05]} 2. Nf3 {[%emt 0:00:00]} Nc6 {[%emt 0:00:01]} 3. Bc4 {[%emt 0:00:01]} Nf6 {[%emt 0:00:02]} 4. d3 {[%emt 0:00:00]} Bc5 {[%emt 0:00:02]} 5. Bg5 {[%emt 0:00:01]} h6 {[%emt 0:00:01]} 6. Bh4 {[%emt 0:00:00]} d6 {[%emt 0:00:02]} 7. c3 {[%emt 0:00:01]} Qe7 {[%emt 0:00:01]} 8. Nbd2 {[%emt 0:00:02]} a6 {[%emt 0:00:01]} 9. O-O {[%emt 0:00:02]} Ba7 {[%emt 0:00:03]} 10. b4 {[%emt 0:00:01]} g5 {[%emt 0:00:22]} 11. Bg3 {[%emt 0:00:02]} Nd7 {[%emt 0:00:06]} 12. b5 {[%emt 0:00:03]} Na5 {[%emt 0:01:34]} 13. bxa6 {[%emt 0:00:18]} bxa6 {[%emt 0:00:02]} 14. Bd5 {[%emt 0:01:21]} c6 {[%emt 0:00:03]} 15. Bb3 {[%emt 0:01:07]} Nxb3 {[%emt 0:00:25]} 16. axb3 {[%emt 0:00:11]} O-O {[%emt 0:00:02]} 17. d4 {[%emt 0:00:16]} exd4 {[%emt 0:00:25]} 18. Nxd4 {[%emt 0:00:04]} Bxd4 {[%emt 0:01:08]} 19. cxd4 {[%emt 0:00:02]} Nf6 {[%emt 0:00:15]} 20. Re1 {[%emt 0:00:26]} Be6 {[%emt 0:00:02]} 21. f4 {[%emt 0:00:16]} Bg4 {[%emt 0:00:11]} 22. Qc2 {[%emt 0:00:24]} Nh5 {[%emt 0:00:02]} 23. fxg5 {[%emt 0:00:22]} Nxg3 {[%emt 0:00:17]} 24. hxg3 {[%emt 0:00:00]} Qxg5 {[%emt 0:00:02]} 25. Qc3 {[%emt 0:00:20]} d5 {[%emt 0:00:58]} 26. exd5 {[%emt 0:00:22]} cxd5 {[%emt 0:00:27]} 27. Re5 {[%emt 0:00:01]} Qg7 {[%emt 0:00:01]} 28. Rxd5 {[%emt 0:00:30]} Rad8 {[%emt 0:00:24]} 29. Re5 {[%emt 0:00:13]} Rfe8 {[%emt 0:01:13]} 30. Rxa6 {[%emt 0:01:21]} Rxe5 {[%emt 0:00:08]} 31. dxe5 {[%emt 0:00:01]} Bf5 {[%emt 0:00:23]} 32. Qe3 {[%emt 0:00:59]} Rd3 {[%emt 0:00:49]} 33. Ra8+ {[%emt 0:00:35]} Kh7 {[%emt 0:00:02]} 34. Qf4 {[%emt 0:00:00]} Qg5 {[%emt 0:00:15]} 35. Nf3 {[%emt 0:00:36]} Qxf4 {[%emt 0:00:08]} 36. gxf4 {[%emt 0:00:01]} Be4 {[%emt 0:00:18]} 37. Ra7 {[%emt 0:00:21]} Bxf3 {[%emt 0:00:01]} 38. gxf3 {[%emt 0:00:02]} Kg6 {[%emt 0:00:02]} 39. Ra6+ {[%emt 0:00:19]} Kg7 {[%emt 0:00:01]} 40. Kg2 {[%emt 0:00:02]} Rxb3 {[%emt 0:00:01]} 41. Kg3 {[%emt 0:00:04]} Re3 {[%emt 0:00:04]} 42. Ra4 {[%emt 0:00:08]} Kg6 {[%emt 0:00:04]} 43. Ra6+ {[%emt 0:00:02]} Kg7 {[%emt 0:00:01]} 44. Kf2 {[%emt 0:00:02]} Rb3 {[%emt 0:00:02]} 45. f5 {[%emt 0:00:03]} Rb5 {[%emt 0:00:05]} 46. f4 {[%emt 0:00:01]} Rb7 {[%emt 0:00:37]} 47. Kg3 {[%emt 0:00:03]} Rc7 {[%emt 0:00:03]} 48. Kg4 {[%emt 0:00:01]} Rb7 {[%emt 0:00:04]} 49. Ra8 {[%emt 0:00:05]} Rb1 {[%emt 0:00:06]} 50. f6+ {[%emt 0:00:02]} Kh7 {[%emt 0:00:01]} 51. Kf5 {[%emt 0:00:05]} Rb7 {[%emt 0:00:04]} 52. Ra1 {[%emt 0:00:05]} 1-0

[Event "CCT Chessable Masters Place D-III 2024"]
[Site "Online"]
[Date "2024.02.01"]
[Round "1"]
[White "Safarli, Eltaj"]
[Black "Raja Rithvik R"]
[Result "1-0"]
[ECO "B50"]
[WhiteElo "2604"]
[BlackElo "2522"]
[Annotator "ChessBase"]
[PlyCount "105"]
[EventDate "2024.01.12"]
[EventType "k.o."]
[EventCountry "NET"]
[SourceTitle "playchess.com"]
[Source "ChessBase"]
[SourceQuality "1"]
[TimeControl "600+2"]

1. e4 {[%emt 0:00:02]} c5 {[%emt 0:00:03]} 2. Nf3 {[%emt 0:00:02]} d6 {[%emt 0:00:06]} 3. Nc3 {[%emt 0:00:01]} Nf6 {[%emt 0:00:02]} 4. e5 {[%emt 0:00:01]} dxe5 {[%emt 0:00:07]} 5. Nxe5 {[%emt 0:00:00]} a6 {[%emt 0:00:04]} 6. g3 {[%emt 0:00:02]} Qd6 {[%emt 0:00:01]} 7. Nf3 {[%emt 0:00:00]} b5 {[%emt 0:00:02]} 8. Bg2 {[%emt 0:00:02]} Bb7 {[%emt 0:00:00]} 9. O-O {[%emt 0:00:01]} e6 {[%emt 0:00:01]} 10. d3 {[%emt 0:00:02]} Be7 {[%emt 0:00:01]} 11. a4 {[%emt 0:00:00]} b4 {[%emt 0:00:01]} 12. Nb1 {[%emt 0:00:01]} O-O {[%emt 0:00:01]} 13. Nbd2 {[%emt 0:00:01]} Qc7 {[%emt 0:00:02]} 14. Nc4 {[%emt 0:00:02]} Nd5 {[%emt 0:00:00]} 15. Re1 {[%emt 0:00:37]} Nc6 {[%emt 0:00:10]} 16. h4 {[%emt 0:00:13]} Rad8 {[%emt 0:00:20]} 17. Ng5 {[%emt 0:00:17]} h6 {[%emt 0:00:39]} 18. Ne4 {[%emt 0:00:03]} Rfe8 {[%emt 0:00:32]} 19. Be3 {[%emt 0:01:23]} Nxe3 {[%emt 0:00:15]} 20. Nxe3 {[%emt 0:00:01]} Ne5 {[%emt 0:01:05]} 21. Qe2 {[%emt 0:00:10]} Qd7 {[%emt 0:00:52]} 22. Nd2 {[%emt 0:00:31]} Nc6 {[%emt 0:00:12]} 23. Nec4 {[%emt 0:00:26]} Nd4 {[%emt 0:00:16]} 24. Qd1 {[%emt 0:00:01]} Bxg2 {[%emt 0:00:34]} 25. Kxg2 {[%emt 0:00:00]} Bf8 {[%emt 0:00:04]} 26. Ne5 {[%emt 0:00:46]} Qb7+ {[%emt 0:00:23]} 27. Nef3 {[%emt 0:00:05]} e5 {[%emt 0:00:35]} 28. Kg1 {[%emt 0:00:21]} Qd5 {[%emt 0:00:23]} 29. Nxd4 {[%emt 0:00:10]} cxd4 {[%emt 0:00:03]} 30. b3 {[%emt 0:00:25]} f5 {[%emt 0:00:17]} 31. Qh5 {[%emt 0:00:05]} Qe6 {[%emt 0:01:10]} 32. Re2 {[%emt 0:00:20]} Qf6 {[%emt 0:01:04]} 33. Rae1 {[%emt 0:00:08]} Bd6 {[%emt 0:01:07]} 34. f4 {[%emt 0:00:59]} Re7 {[%emt 0:00:16]} 35. Nc4 {[%emt 0:00:20]} exf4 {[%emt 0:00:05]} 36. Rxe7 {[%emt 0:01:18]} Bxe7 {[%emt 0:00:01]} 37. gxf4 {[%emt 0:00:01]} Qxh4 {[%emt 0:00:07]} 38. Qxh4 {[%emt 0:00:01]} Bxh4 {[%emt 0:00:00]} 39. Re6 {[%emt 0:00:14]} g5 {[%emt 0:00:09]} 40. Rxh6 {[%emt 0:00:06]} Kg7 {[%emt 0:00:01]} 41. fxg5 {[%emt 0:00:02]} Bxg5 {[%emt 0:00:02]} 42. Rxa6 {[%emt 0:00:01]} Re8 {[%emt 0:00:02]} 43. Kf2 {[%emt 0:00:09]} Rh8 {[%emt 0:00:02]} 44. Kg3 {[%emt 0:00:08]} Bc1 {[%emt 0:00:08]} 45. Ne5 {[%emt 0:00:09]} f4+ {[%emt 0:00:01]} 46. Kg4 {[%emt 0:00:02]} Rh2 {[%emt 0:00:00]} 47. Rc6 {[%emt 0:00:05]} Rg2+ {[%emt 0:00:05]} 48. Kf5 {[%emt 0:00:01]} Rg3 {[%emt 0:00:03]} 49. Rc7+ {[%emt 0:00:02]} Kf8 {[%emt 0:00:03]} 50. Kf6 {[%emt 0:00:04]} Kg8 {[%emt 0:00:01]} 51. Nf7 {[%emt 0:00:12]} Kh7 {[%emt 0:00:04]} 52. Ng5+ {[%emt 0:00:01]} Kg8 {[%emt 0:00:01]} 53. Rc8# {[%emt 0:00:01]} 1-0

[Event "CCT Chessable Masters Place D-III 2024"]
[Site "Online"]
[Date "2024.02.01"]
[Round "1"]
[White "BilodeauA"]
[Black "Bluebaum, Matthias"]
[Result "1/2-1/2"]
[ECO "C07"]
[WhiteElo "2602"]
[BlackElo "2655"]
[Annotator "ChessBase"]
[PlyCount "91"]
[EventDate "2024.01.12"]
[EventType "k.o."]
[EventCountry "NET"]
[SourceTitle "playchess.com"]
[Source "ChessBase"]
[SourceQuality "1"]
[TimeControl "600+2"]

1. e4 {[%emt 0:00:04]} e6 {[%emt 0:00:04]} 2. d4 {[%emt 0:00:02]} d5 {[%emt 0:00:01]} 3. Nd2 {[%emt 0:00:00]} c5 {[%emt 0:00:03]} 4. exd5 {[%emt 0:00:01]} Qxd5 {[%emt 0:00:00]} 5. dxc5 {[%emt 0:00:07]} Nf6 {[%emt 0:00:05]} 6. Nb3 {[%emt 0:00:06]} Qxd1+ {[%emt 0:00:14]} 7. Kxd1 {[%emt 0:00:00]} Bd7 {[%emt 0:00:03]} 8. a4 {[%emt 0:00:04]} Bc6 {[%emt 0:00:34]} 9. Bb5 {[%emt 0:01:59]} Nbd7 {[%emt 0:00:37]} 10. Bxc6 {[%emt 0:00:23]} bxc6 {[%emt 0:00:00]} 11. Nf3 {[%emt 0:00:14]} Nxc5 {[%emt 0:00:20]} 12. Nxc5 {[%emt 0:00:07]} Bxc5 {[%emt 0:00:01]} 13. Ke2 {[%emt 0:00:01]} Ke7 {[%emt 0:00:44]} 14. Ne5 {[%emt 0:00:21]} Rhc8 {[%emt 0:00:29]} 15. Rd1 {[%emt 0:00:09]} Rab8 {[%emt 0:00:25]} 16. c3 {[%emt 0:00:15]} Nd5 {[%emt 0:00:25]} 17. Nc4 {[%emt 0:00:05]} Nb6 {[%emt 0:00:47]} 18. Na5 {[%emt 0:00:10]} Nd5 {[%emt 0:00:02]} 19. Nc4 {[%emt 0:00:40]} Nb6 {[%emt 0:00:03]} 20. Nd2 {[%emt 0:00:05]} Bd6 {[%emt 0:00:53]} 21. g3 {[%emt 0:00:04]} Bc7 {[%emt 0:00:06]} 22. a5 {[%emt 0:00:42]} Nd5 {[%emt 0:00:04]} 23. Nc4 {[%emt 0:00:01]} a6 {[%emt 0:00:08]} 24. Kd3 {[%emt 0:00:17]} Rb5 {[%emt 0:00:17]} 25. Kc2 {[%emt 0:00:04]} f6 {[%emt 0:00:12]} 26. b3 {[%emt 0:01:18]} e5 {[%emt 0:00:20]} 27. Ba3+ {[%emt 0:00:01]} Ke6 {[%emt 0:00:01]} 28. Nb2 {[%emt 0:00:14]} Rbb8 {[%emt 0:01:01]} 29. c4 {[%emt 0:00:04]} Bxa5 {[%emt 0:00:22]} 30. Nd3 {[%emt 0:00:26]} Nb4+ {[%emt 0:00:17]} 31. Bxb4 {[%emt 0:00:04]} Bxb4 {[%emt 0:00:00]} 32. Rxa6 {[%emt 0:00:06]} Bd6 {[%emt 0:00:16]} 33. f3 {[%emt 0:00:08]} Ra8 {[%emt 0:00:26]} 34. Rda1 {[%emt 0:00:02]} Rxa6 {[%emt 0:00:01]} 35. Rxa6 {[%emt 0:00:00]} f5 {[%emt 0:00:00]} 36. c5 {[%emt 0:00:45]} e4 {[%emt 0:00:12]} 37. cxd6 {[%emt 0:00:20]} exd3+ {[%emt 0:00:03]} 38. Kxd3 {[%emt 0:00:01]} Kxd6 {[%emt 0:00:01]} 39. b4 {[%emt 0:00:25]} Rb8 {[%emt 0:00:27]} 40. Kc4 {[%emt 0:00:07]} Rb7 {[%emt 0:00:01]} 41. h4 {[%emt 0:00:10]} g6 {[%emt 0:00:02]} 42. Ra8 {[%emt 0:00:26]} Re7 {[%emt 0:00:06]} 43. Kd4 {[%emt 0:00:04]} Rb7 {[%emt 0:00:12]} 44. Kc4 {[%emt 0:00:01]} Re7 {[%emt 0:00:01]} 45. Kd4 {[%emt 0:00:06]} Rb7 {[%emt 0:00:01]} 46. Kc4 {[%emt 0:00:01]} 1/2-1/2